fUST/lending_fUST_20251010
["ID","MTS","AMOUNT","RATE_DAILY","PERIOD"]
[390565296,1760086243720,-6104.8,0.00016712,2]
[390565297,1760086243729,-500.0,0.00016712,2]
[390565298,1760086243739,-926.29,0.00016712,2]
[390565299,1760086243748,-500.0,0.00016712,2]
[390565300,1760086243758,-500.0,0.00016712,2]
[390565301,1760086243767,-500.0,0.00016712,2]
[390565302,1760086243777,-500.0,0.00016712,2]
[390565303,1760086243786,-500.0,0.00016712,2]
[390565304,1760086243795,-500.0,0.00016712,2]
[390565305,1760086243804,-500.0,0.00016712,2]
[390565306,1760086243813,-724.11,0.00016712,2]
[390565307,1760086243823,-501.49543512,0.00016712,2]
[390565308,1760086243832,-747.05,0.00016712,2]
[390565309,1760086243842,-500.0,0.00016712,2]
[390565310,1760086243851,-189.29873602,0.00016712,2]
[390565311,1760086243860,-500.0,0.00016712,2]
[390565312,1760086243869,-358.89691764,0.00016712,2]
[390565313,1760086243878,-500.0,0.00016712,2]
[390565314,1760086243888,-252.52752145,0.00016712,2]
[390565315,1760086243897,-500.0,0.00016712,2]
[390565316,1760086243906,-500.0,0.00016712,2]
[390565317,1760086243915,-500.0,0.00016712,2]
[390565318,1760086243924,-964.12,0.00016712,2]
[390565319,1760086243934,-500.0,0.00016712,2]
[390565320,1760086243943,-500.0,0.00016712,2]
[390565321,1760086243952,-623.6423207,0.00016712,2]
[390565322,1760086243962,-500.0,0.00016712,2]
[390565323,1760086243971,-1350.41,0.00016712,2]
[390565324,1760086243979,-500.0,0.00016712,2]
[390565325,1760086243989,-505.23165234,0.00016712,2]
[390565326,1760086243998,-1366.33,0.00016712,2]
[390565327,1760086244007,-500.0,0.00016712,2]
[390565328,1760086244016,-500.0,0.00016712,2]
[390565329,1760086244025,-938.39,0.00016712,2]
[390565330,1760086244034,-1480.98,0.00016712,2]
[390565331,1760086244043,-500.0,0.00016712,2]
[390565332,1760086244052,-500.0,0.00016712,2]
[390565333,1760086244063,-500.0,0.00016712,2]
[390565334,1760086244072,-2734.03,0.00016712,2]
[390565335,1760086244080,-500.0,0.00016712,2]
[390565336,1760086244089,-500.0,0.00016712,2]
[390565337,1760086244098,-500.0,0.00016712,2]
[390565338,1760086244107,-500.0,0.00016712,2]
[390565339,1760086244116,-4100.27,0.00016712,2]
[390565340,1760086244126,-500.0,0.00016712,2]
[390565341,1760086244135,-4333.01,0.00016712,2]
[390565342,1760086244144,-500.0,0.00016712,2]
[390565343,1760086244153,-500.0,0.00016712,2]
[390565344,1760086244163,-500.0,0.00016712,2]
[390565345,1760086244173,-500.0,0.00016712,2]
[390565346,1760086244182,-734.73,0.00016712,2]
[390565347,1760086244191,-502.16497774,0.00016712,2]
[390565348,1760086244200,-500.0,0.00016712,2]
[390565349,1760086244209,-500.0,0.00016712,2]
[390565350,1760086244219,-553.99,0.00016712,2]
[390565351,1760086244228,-500.0,0.00016712,2]
[390565352,1760086244238,-626.14,0.00016712,2]
[390565353,1760086244247,-940.36,0.00016712,2]
[390565354,1760086244256,-500.0,0.00016712,2]
[390565355,1760086244268,-481.31449246,0.00016712,2]
[390565356,1760086244279,-500.0,0.00016712,2]
[390565357,1760086244288,-806.97,0.00016712,2]
[390565358,1760086244297,-500.0,0.00016712,2]
[390565359,1760086244306,-500.0,0.00016712,2]
[390565360,1760086244315,-609.99,0.00016712,2]
[390565361,1760086244325,-500.0,0.00016712,2]
[390565362,1760086244334,-500.0,0.00016712,2]
[390565363,1760086244343,-1039.02,0.00016712,2]
[390565364,1760086244353,-500.0,0.00016712,2]
[390565365,1760086244362,-1510.17,0.00016712,2]
[390565366,1760086244371,-500.0,0.00016712,2]
[390565367,1760086244380,-5670.56,0.00016712,2]
[390565368,1760086244389,-501.07654025,0.00016712,2]
[390565369,1760086244398,-2062.52,0.00016712,2]
[390565370,1760086244408,-523.83,0.00016712,2]
[390565371,1760086244417,-500.0,0.00016712,2]
[390565372,1760086244427,-500.60525948,0.00016712,2]
[390565373,1760086244438,-500.0,0.00016712,2]
[390565374,1760086244448,-500.0,0.00016712,2]
[390565375,1760086244457,-500.0,0.00016712,2]
[390565376,1760086244467,-500.0,0.00016712,2]
[390565377,1760086244476,-500.0,0.00016712,2]
[390565378,1760086244486,-740.71,0.00016712,2]
[390565379,1760086244495,-500.0,0.00016712,2]
[390565380,1760086244504,-500.0,0.00016712,2]
[390565381,1760086244515,-500.0,0.00016712,2]
[390565382,1760086244526,-565.37,0.00016712,2]
[390565383,1760086244536,-500.0,0.00016712,2]
[390565384,1760086244545,-500.0,0.00016712,2]
[390565385,1760086244555,-500.0,0.00016712,2]
[390565386,1760086244564,-500.0,0.00016712,2]
[390565387,1760086244573,-500.0,0.00016712,2]
[390565388,1760086244582,-500.0,0.00016712,2]
[390565389,1760086244591,-2341.16,0.00016712,2]
[390565390,1760086244600,-500.0,0.00016712,2]
[390565391,1760086244609,-500.0,0.00016712,2]
[390565392,1760086244619,-500.0,0.00016712,2]
[390565393,1760086244628,-500.0,0.00016712,2]
[390565394,1760086244637,-500.0,0.00016712,2]
[390565395,1760086244647,-375.81580885,0.00016712,2]
[390565396,1760086244657,-721.86,0.00016712,2]
[390565397,1760086244667,-577.08,0.00016712,2]
[390565398,1760086244676,-500.0,0.00016712,2]
[390565399,1760086244686,-1278.0,0.00016712,2]
[390565400,1760086244696,-500.0,0.00016712,2]
[390565401,1760086244705,-500.0,0.00016712,2]
[390565402,1760086244715,-501.3140315,0.00016712,2]
[390565403,1760086244724,-500.0,0.00016712,2]
[390565404,1760086244733,-930.64,0.00016712,2]
[390565405,1760086244741,-2586.95,0.00016712,2]
[390565406,1760086244751,-500.0,0.00016712,2]
[390565407,1760086244761,-956.12,0.00016712,2]
[390565408,1760086244771,-592.67,0.00016712,2]
[390565409,1760086244780,-1343.6,0.00016712,2]
[390565410,1760086244790,-500.0,0.00016712,2]
[390565411,1760086244799,-501.68338757,0.00016712,2]
[390565412,1760086244810,-945.78,0.00016712,2]
[390565413,1760086244820,-500.0,0.00016712,2]
[390565414,1760086244829,-500.0,0.00016712,2]
[390565415,1760086244839,-500.0,0.00016712,2]
[390565416,1760086244848,-998.22,0.00016712,2]
[390565417,1760086244859,-449.55092511,0.00016712,2]
[390565418,1760086244869,-500.0,0.00016712,2]
[390565419,1760086244878,-500.0,0.00016712,2]
[390565420,1760086244887,-2152.12,0.00016712,2]
[390565421,1760086244897,-500.0,0.00016712,2]
[390565422,1760086244906,-500.0,0.00016712,2]
[390565423,1760086244915,-565.15,0.00016712,2]
[390565424,1760086244925,-640.41,0.00016712,2]
[390565425,1760086244934,-500.44093117,0.00016712,2]
[390565426,1760086244943,-500.67279678,0.00016712,2]
[390565427,1760086244952,-500.0,0.00016712,2]
[390565428,1760086244961,-500.0,0.00016712,2]
[390565429,1760086244970,-500.0,0.00016712,2]
[390565430,1760086244979,-500.0,0.00016712,2]
[390565431,1760086244988,-500.0,0.00016712,2]
[390565432,1760086244997,-500.0,0.00016712,2]
[390565433,1760086245007,-500.0,0.00016712,2]
[390565434,1760086245017,-300.0,0.00016712,2]
[390565435,1760086245032,-2096.83,0.00016712,2]
[390565436,1760086245044,-500.0,0.00016712,2]
[390565437,1760086245053,-3322.26,0.00016712,2]
[390565438,1760086245062,-921.09,0.00016712,2]
[390565439,1760086245072,-617.32,0.00016712,2]
[390565440,1760086245081,-500.0,0.00016712,2]
[390565441,1760086245090,-500.0,0.00016712,2]
[390565442,1760086245099,-502.33835754,0.00016712,2]
[390565443,1760086245109,-500.0,0.00016712,2]
[390565444,1760086245118,-500.0,0.00016712,2]
[390565445,1760086245127,-500.0,0.00016712,2]
[390565446,1760086245137,-500.0,0.00016712,2]
[390565447,1760086245146,-1209.18,0.00016712,2]
[390565448,1760086245156,-500.0,0.00016712,2]
[390565449,1760086245166,-1737.9,0.00016712,2]
[390565450,1760086245176,-651.29,0.00016712,2]
[390565451,1760086245185,-500.0,0.00016712,2]
[390565452,1760086245195,-500.0,0.00016712,2]
[390565453,1760086245205,-500.0,0.00016712,2]
[390565454,1760086245214,-531.82525681,0.00016712,2]
[390565455,1760086245223,-500.0,0.00016712,2]
[390565456,1760086245233,-500.0,0.00016712,2]
[390565457,1760086245243,-500.0,0.00016712,2]
[390565458,1760086245252,-1090.09,0.00016712,2]
[390565459,1760086245263,-560.0,0.00016712,2]
[390565460,1760086245272,-500.0,0.00016712,2]
[390565461,1760086245282,-500.0,0.00016712,2]
[390565462,1760086245291,-500.0,0.00016712,2]
[390565463,1760086245301,-500.0,0.00016712,2]
[390565464,1760086245310,-500.0,0.00016712,2]
[390565465,1760086245320,-300.0,0.00016766,2]
[390565466,1760086245329,-300.0,0.00016766,2]
[390565467,1760086245339,-300.0,0.00016766,2]
[390565468,1760086245348,-300.0,0.00016766,2]
[390565469,1760086245358,-300.0,0.00016766,2]
[390565470,1760086245368,-300.0,0.00016766,2]
[390565471,1760086245377,-300.0,0.00016766,2]
[390565472,1760086245387,-300.0,0.00016766,2]
[390565473,1760086245396,-300.0,0.00016766,2]
[390565474,1760086245405,-300.0,0.00016766,2]
[390565475,1760086245414,-300.0,0.00016766,2]
[390565476,1760086245424,-300.0,0.00016766,2]
[390565477,1760086245437,-300.0,0.00016766,2]
[390565478,1760086245447,-300.0,0.00016766,2]
[390565479,1760086245456,-300.0,0.00016766,2]
[390565480,1760086245466,-600.0,0.00016766,2]
[390565481,1760086245477,-412.71124399,0.00016899,2]
[390565482,1760086245487,-326.42441801,0.00016934,2]
[390565483,1760086245496,-5922.75,0.00016985,2]
[390565484,1760086245505,-5922.75,0.00016985,2]
[390565485,1760086245515,-5922.75,0.00016985,2]
[390565486,1760086245524,-5922.75,0.00016985,2]
[390565487,1760086245534,-5922.75,0.00016985,2]
[390565488,1760086245543,-176.15787032,0.00016985,2]
[390565489,1760086245552,-357.98328849,0.00016985,2]
[390565490,1760086245562,-500.0,0.00016986,2]
[390565491,1760086245571,-500.0,0.00016986,2]
[390565492,1760086245580,-941.18,0.00016986,2]
[390565493,1760086245589,-500.0,0.00016986,2]
[390565494,1760086245598,-500.0,0.00016986,2]
[390565495,1760086245607,-505.04743066,0.00016986,2]
[390565496,1760086245617,-900.14,0.00016986,2]
[390565497,1760086245626,-500.0,0.00016986,2]
[390565498,1760086245635,-500.0,0.00016986,2]
[390565499,1760086245645,-500.0,0.00016986,2]
[390565500,1760086245655,-500.0,0.00016986,2]
[390565501,1760086245664,-500.0,0.00016986,2]
[390565502,1760086245673,-500.0,0.00016986,2]
[390565503,1760086245682,-500.0,0.00016986,2]
[390565504,1760086245691,-569.22,0.00016986,2]
[390565505,1760086245700,-500.0,0.00016986,2]
[390565506,1760086245710,-504.43861345,0.00016986,2]
[390565507,1760086245719,-500.0,0.00016986,2]
[390565508,1760086245728,-500.0,0.00016986,2]
[390565509,1760086245738,-500.0,0.00016986,2]
[390565510,1760086245748,-914.63,0.00016986,2]
[390565511,1760086245758,-500.0,0.00016986,2]
[390565512,1760086245770,-500.0,0.00016986,2]
[390565513,1760086245780,-500.0,0.00016986,2]
[390565514,1760086245790,-500.0,0.00016986,2]
[390565515,1760086245799,-156.88579155,0.00016986,2]
[390565516,1760086245809,-500.0,0.00016986,2]
[390565517,1760086245818,-500.0,0.00016986,2]
[390565518,1760086245828,-1084.95,0.00016986,2]
[390565519,1760086245839,-500.0,0.00016986,2]
[390565520,1760086245848,-500.0,0.00016986,2]
[390565521,1760086245858,-500.0,0.00016986,2]
[390565522,1760086245906,-500.0,0.00016986,2]
[390565523,1760086245916,-977.93,0.00016986,2]
[390565524,1760086245925,-340.36628464,0.00016986,2]
[390565525,1760086245935,-500.0,0.00016986,2]
[390565526,1760086245944,-500.0,0.00016986,2]
[390565527,1760086245953,-477.30020375,0.00016986,2]
[390565528,1760086245962,-425.84197494,0.00016986,2]
[390565529,1760086245972,-500.0,0.00016986,2]
[390565530,1760086245982,-502.4887335,0.00016986,2]
[390565531,1760086245991,-500.0,0.00016986,2]
[390565532,1760086246000,-1011.91,0.00016986,2]
[390565533,1760086246010,-876.77,0.00016986,2]
[390565534,1760086246019,-500.0,0.00016986,2]
[390565535,1760086246028,-500.0,0.00016986,2]
[390565536,1760086246037,-500.0,0.00016986,2]
[390565537,1760086246047,-378.9543761,0.00016986,2]
[390565538,1760086246056,-500.0,0.00016986,2]
[390565539,1760086246065,-500.0,0.00016986,2]
[390565540,1760086246074,-500.0,0.00016986,2]
[390565541,1760086246083,-2019.47,0.00016986,2]
[390565542,1760086246092,-500.0,0.00016986,2]
[390565543,1760086246101,-500.0,0.00016986,2]
[390565544,1760086246110,-500.0,0.00016986,2]
[390565545,1760086246119,-500.0,0.00016986,2]
[390565546,1760086246128,-500.0,0.00016986,2]
[390565547,1760086246137,-500.0,0.00016986,2]
[390565548,1760086246146,-501.63990512,0.00016986,2]
[390565549,1760086246155,-500.0,0.00016986,2]
[390565550,1760086246164,-500.0,0.00016986,2]
[390565551,1760086246173,-921.82,0.00016986,2]
[390565552,1760086246182,-748.9,0.00016986,2]
[390565553,1760086246192,-1162.93,0.00016986,2]
[390565554,1760086246200,-500.0,0.00016986,2]
[390565555,1760086246210,-500.0,0.00016986,2]
[390565556,1760086246219,-500.0,0.00016986,2]
[390565557,1760086246229,-500.0,0.00016986,2]
[390565558,1760086246238,-500.0,0.00016986,2]
[390565559,1760086246247,-500.0,0.00016986,2]
[390565560,1760086246257,-6947.29,0.00016986,2]
[390565561,1760086246267,-500.0,0.00016986,2]
[390565562,1760086246277,-770.88,0.00016986,2]
[390565563,1760086246287,-500.0,0.00016986,2]
[390565564,1760086246296,-500.0,0.00016986,2]
[390565565,1760086246305,-500.0,0.00016986,2]
[390565566,1760086246315,-500.0,0.00016986,2]
[390565567,1760086246324,-500.0,0.00016986,2]
[390565568,1760086246333,-500.0,0.00016986,2]
[390565569,1760086246343,-2072.42,0.00016986,2]
[390565570,1760086246353,-202.72437659,0.00016986,2]
[390565571,1760086246362,-500.0,0.00016986,2]
[390565572,1760086246371,-502.52250354,0.00016986,2]
[390565573,1760086246381,-504.20855328,0.00016986,2]
[390565575,1760086246390,-500.0,0.00016986,2]
[390565577,1760086246399,-503.7590767,0.00016986,2]
[390565579,1760086246408,-879.56,0.00016986,2]
[390565581,1760086246417,-500.0,0.00016986,2]
[390565583,1760086246426,-504.11079251,0.00016986,2]
[390565585,1760086246438,-500.91900089,0.00016986,2]
[390565588,1760086246449,-500.0,0.00016986,2]
[390565589,1760086246458,-500.0,0.00016986,2]
[390565591,1760086246467,-500.0,0.00016986,2]
[390565593,1760086246476,-2182.76,0.00016986,2]
[390565595,1760086246486,-500.69808346,0.00016986,2]
[390565597,1760086246495,-606.63815036,0.00016986,2]
[390565599,1760086246504,-439.66486777,0.00016986,2]
[390565601,1760086246516,-500.0,0.00016986,2]
[390565603,1760086246526,-500.0,0.00016986,2]
[390565605,1760086246535,-3235.43,0.00016986,2]
[390565606,1760086246544,-500.0,0.00016986,2]
[390565608,1760086246553,-6211.09,0.00016986,2]
[390565610,1760086246562,-500.0,0.00016986,2]
[390565612,1760086246571,-500.0,0.00016986,2]
[390565614,1760086246580,-500.0,0.00016986,2]
[390565616,1760086246589,-500.0,0.00016986,2]
[390565618,1760086246598,-500.0,0.00016986,2]
[390565620,1760086246607,-500.0,0.00016986,2]
[390565622,1760086246616,-500.0,0.00016986,2]
[390565623,1760086246625,-500.0,0.00016986,2]
[390565624,1760086246633,-500.0,0.00016986,2]
[390565625,1760086246642,-500.0,0.00016986,2]
[390565626,1760086246651,-500.0,0.00016986,2]
[390565627,1760086246660,-500.0,0.00016986,2]
[390565628,1760086246669,-864.2,0.00016986,2]
[390565629,1760086246678,-500.0,0.00016986,2]
[390565630,1760086246688,-6104.8,0.00016986,2]
[390565631,1760086246696,-500.0,0.00016986,2]
[390565632,1760086246705,-926.29,0.00016986,2]
[390565633,1760086246715,-500.0,0.00016986,2]
[390565634,1760086246724,-500.0,0.00016986,2]
[390565635,1760086246733,-500.0,0.00016986,2]
[390565636,1760086246742,-500.0,0.00016986,2]
[390565637,1760086246751,-500.0,0.00016986,2]
[390565639,1760086246760,-500.0,0.00016986,2]
[390565641,1760086246768,-724.11,0.00016986,2]
[390565642,1760086246777,-747.05,0.00016986,2]
[390565644,1760086246786,-500.0,0.00016986,2]
[390565646,1760086246794,-500.0,0.00016986,2]
[390565647,1760086246803,-500.0,0.00016986,2]
[390565648,1760086246812,-500.0,0.00016986,2]
[390565649,1760086246822,-500.0,0.00016986,2]
[390565650,1760086246831,-500.0,0.00016986,2]
[390565651,1760086246840,-964.12,0.00016986,2]
[390565652,1760086246849,-441.73801122,0.00016986,2]
[390565653,1760086246859,-500.0,0.00016986,2]
[390565654,1760086246868,-500.0,0.00016986,2]
[390565655,1760086246877,-500.0,0.00016986,2]
[390565656,1760086246887,-1350.41,0.00016986,2]
[390565657,1760086246896,-1366.33,0.00016986,2]
[390565658,1760086246907,-500.0,0.00016986,2]
[390565659,1760086246917,-500.0,0.00016986,2]
[390565660,1760086246927,-938.39,0.00016986,2]
[390565661,1760086246935,-1480.98,0.00016986,2]
[390565662,1760086246944,-500.0,0.00016986,2]
[390565663,1760086246953,-500.0,0.00016986,2]
[390565664,1760086246962,-500.0,0.00016986,2]
[390565665,1760086246971,-2734.03,0.00016986,2]
[390565666,1760086246980,-500.0,0.00016986,2]
[390565667,1760086246989,-500.0,0.00016986,2]
[390565668,1760086246999,-500.0,0.00016986,2]
[390565669,1760086247008,-4100.27,0.00016986,2]
[390565670,1760086247018,-500.0,0.00016986,2]
[390565671,1760086247027,-4333.01,0.00016986,2]
[390565672,1760086247037,-500.0,0.00016986,2]
[390565673,1760086247046,-500.0,0.00016986,2]
[390565674,1760086247056,-500.0,0.00016986,2]
[390565675,1760086247066,-500.0,0.00016986,2]
[390565676,1760086247075,-734.73,0.00016986,2]
[390565677,1760086247084,-500.0,0.00016986,2]
[390565678,1760086247092,-500.0,0.00016986,2]
[390565679,1760086247101,-553.99,0.00016986,2]
[390565680,1760086247110,-500.0,0.00016986,2]
[390565681,1760086247119,-626.14,0.00016986,2]
[390565682,1760086247128,-940.36,0.00016986,2]
[390565683,1760086247137,-500.0,0.00016986,2]
[390565684,1760086247146,-500.0,0.00016986,2]
[390565685,1760086247155,-500.0,0.00016986,2]
[390565686,1760086247164,-806.97,0.00016986,2]
[390565687,1760086247174,-500.0,0.00016986,2]
[390565688,1760086247182,-609.99,0.00016986,2]
[390565689,1760086247193,-500.0,0.00016986,2]
[390565690,1760086247202,-1039.02,0.00016986,2]
[390565691,1760086247211,-500.0,0.00016986,2]
[390565692,1760086247220,-1510.17,0.00016986,2]
[390565693,1760086247230,-500.0,0.00016986,2]
[390565694,1760086247239,-5670.56,0.00016986,2]
[390565695,1760086247248,-2062.52,0.00016986,2]
[390565696,1760086247257,-523.83,0.00016986,2]
[390565697,1760086247267,-320.003172,0.00016986,2]
[390565698,1760086247277,-176.31719944,0.00016986,2]
[390565699,1760086247286,-320.003172,0.00016986,2]
[390565700,1760086247295,-151.0,0.00016986,2]
[390565701,1760086247304,-320.003172,0.00016986,2]
[390565702,1760086247314,-320.003172,0.00016986,2]
[390565703,1760086247323,-500.0,0.00016986,2]
[390565704,1760086247333,-151.0,0.00016986,2]
[390565705,1760086247342,-500.0,0.00016986,2]
[390565706,1760086247352,-500.0,0.00016986,2]
[390565707,1760086247361,-500.0,0.00016986,2]
[390565708,1760086247371,-562.695234,0.00016986,2]
[390565709,1760086247380,-740.71,0.00016986,2]
[390565710,1760086247390,-500.0,0.00016986,2]
[390565711,1760086247399,-562.695234,0.00016986,2]
[390565712,1760086247409,-562.695234,0.00016986,2]
[390565713,1760086247418,-501.11596704,0.00016986,2]
[390565714,1760086247427,-562.695234,0.00016986,2]
[390565715,1760086247439,-500.0,0.00016986,2]
[390565716,1760086247449,-565.37,0.00016986,2]
[390565717,1760086247458,-500.0,0.00016986,2]
[390565718,1760086247467,-500.0,0.00016986,2]
[390565719,1760086247478,-500.0,0.00016986,2]
[390565720,1760086247488,-151.0,0.00016986,2]
[390565721,1760086247498,-2341.16,0.00016986,2]
[390565722,1760086247507,-500.0,0.00016986,2]
[390565723,1760086247519,-500.0,0.00016986,2]
[390565724,1760086247529,-500.0,0.00016986,2]
[390565725,1760086247540,-721.86,0.00016986,2]
[390565726,1760086247549,-152.357197,0.00016986,2]
[390565727,1760086247558,-577.08,0.00016986,2]
[390565728,1760086247567,-500.0,0.00016986,2]
[390565729,1760086247577,-1278.0,0.00016986,2]
[390565730,1760086247586,-500.0,0.00016986,2]
[390565731,1760086247595,-500.0,0.00016986,2]
[390565732,1760086247604,-930.64,0.00016986,2]
[390565733,1760086247613,-2586.95,0.00016986,2]
[390565734,1760086247623,-500.0,0.00016986,2]
[390565735,1760086247632,-956.12,0.00016986,2]
[390565736,1760086247641,-592.67,0.00016986,2]
[390565737,1760086247650,-1343.6,0.00016986,2]
[390565738,1760086247660,-502.10397334,0.00016986,2]
[390565739,1760086247669,-945.78,0.00016986,2]
[390565740,1760086247678,-151.0,0.00016986,2]
[390565741,1760086247687,-500.0,0.00016986,2]
[390565742,1760086247696,-151.0,0.00016986,2]
[390565743,1760086247705,-151.0,0.00016986,2]
[390565744,1760086247716,-500.0,0.00016986,2]
[390565745,1760086247729,-500.0,0.00016986,2]
[390565746,1760086247738,-998.22,0.00016986,2]
[390565747,1760086247747,-500.0,0.00016986,2]
[390565748,1760086247756,-501.79847167,0.00016986,2]
[390565749,1760086247766,-2152.12,0.00016986,2]
[390565750,1760086247775,-151.0,0.00016986,2]
[390565751,1760086247785,-151.0,0.00016986,2]
[390565752,1760086247796,-151.0,0.00016986,2]
[390565753,1760086247807,-500.0,0.00016986,2]
[390565754,1760086247817,-151.0,0.00016986,2]
[390565755,1760086247828,-151.638751,0.00016986,2]
[390565756,1760086247839,-151.0,0.00016986,2]
[390565757,1760086247851,-500.0,0.00016986,2]
[390565758,1760086247861,-151.0,0.00016986,2]
[390565759,1760086247870,-565.15,0.00016986,2]
[390565760,1760086247881,-640.41,0.00016986,2]
[390565761,1760086247890,-151.0,0.00016986,2]
[390565762,1760086247899,-151.0,0.00016986,2]
[390565763,1760086247908,-500.0,0.00016986,2]
[390565764,1760086247919,-504.06460321,0.00016986,2]
[390565765,1760086247929,-500.0,0.00016986,2]
[390565766,1760086247938,-500.0,0.00016986,2]
[390565767,1760086247947,-151.0,0.00016986,2]
[390565768,1760086247957,-151.0,0.00016986,2]
[390565769,1760086247967,-151.0,0.00016986,2]
[390565770,1760086247977,-151.0,0.00016986,2]
[390565771,1760086247987,-500.0,0.00016986,2]
[390565772,1760086247997,-300.0,0.00016986,2]
[390565773,1760086248007,-2096.83,0.00016986,2]
[390565774,1760086248017,-268.268824,0.00016986,2]
[390565775,1760086248027,-500.0,0.00016986,2]
[390565776,1760086248036,-3322.26,0.00016986,2]
[390565777,1760086248047,-921.09,0.00016986,2]
[390565778,1760086248057,-617.32,0.00016986,2]
[390565779,1760086248067,-500.0,0.00016986,2]
[390565780,1760086248076,-173.963947,0.00016986,2]
[390565781,1760086248086,-500.0,0.00016986,2]
[390565782,1760086248095,-500.0,0.00016986,2]
[390565783,1760086248104,-173.963947,0.00016986,2]
[390565784,1760086248114,-500.0,0.00016986,2]
[390565785,1760086248123,-173.963947,0.00016986,2]
[390565786,1760086248133,-500.0,0.00016986,2]
[390565787,1760086248143,-173.963947,0.00016986,2]
[390565788,1760086248152,-1209.18,0.00016986,2]
[390565789,1760086248162,-500.0,0.00016986,2]
[390565790,1760086248171,-1737.9,0.00016986,2]
[390565791,1760086248180,-651.29,0.00016986,2]
[390565792,1760086248190,-500.0,0.00016986,2]
[390565793,1760086248199,-500.0,0.00016986,2]
[390565794,1760086248208,-500.0,0.00016986,2]
[390565795,1760086248218,-500.0,0.00016986,2]
[390565796,1760086248227,-502.97428733,0.00016986,2]
[390565797,1760086248237,-503.01,0.00016986,2]
[390565798,1760086248246,-1090.09,0.00016986,2]
[390565799,1760086248255,-500.0,0.00016986,2]
[390565800,1760086248267,-500.0,0.00016986,2]
[390565801,1760086248277,-222.98487698,0.00016986,2]
[390565802,1760086248287,-500.0,0.00016986,2]
[390565803,1760086248296,-500.0,0.00016986,2]
[390565804,1760086248306,-250.0,0.00017035,2]
[390565805,1760086248315,-1041.66666667,0.00017079,2]
[390565806,1760086248325,-160.0,0.00017079,2]
[390565807,1760086248334,-402.20179238,0.00017079,2]
[390565808,1760086248343,-234.32063665,0.00017079,2]
[390565809,1760086248353,-160.0,0.0001708,2]
[390565810,1760086248364,-280.75037418,0.000171,2]
[390565811,1760086248374,-151.0,0.000171,2]
[390565812,1760086248383,-5922.75,0.00017135,2]
[390565813,1760086248392,-326.42441801,0.00017256,2]
[390565814,1760086248402,-5922.75,0.00017259,2]
[390565815,1760086248411,-5922.75,0.00017259,2]
[390565816,1760086248420,-5922.75,0.00017259,2]
[390565817,1760086248431,-5922.75,0.00017259,2]
[390565818,1760086248444,-5922.87809889,0.00017259,2]
[390565819,1760086248453,-500.0,0.0001726,2]
[390565820,1760086248463,-500.0,0.0001726,2]
[390565821,1760086248473,-500.0,0.0001726,2]
[390565822,1760086248485,-941.18,0.0001726,2]
[390565823,1760086248494,-500.0,0.0001726,2]